fUSD/lending_fUSD_20250106
["ID","MTS","AMOUNT","RATE_DAILY","PERIOD"]
[347868834,1736173833760,-500.0,0.00010493,2]
[347868836,1736173833771,-500.0,0.00010493,2]
[347868838,1736173833780,-500.0,0.00010493,2]
[347868840,1736173833791,-500.0,0.00010493,2]
[347868842,1736173833802,-581.09934318,0.00010493,2]
[347868844,1736173833814,-302.41714979,0.00010494,2]
[347868846,1736173833825,-500.0,0.00010494,2]
[347868848,1736173833835,-1000.0,0.00010533,2]
[347868849,1736173833844,-500.0,0.00010546,2]
[347868851,1736173833855,-500.0,0.00010546,2]
[347868853,1736173833865,-560.14568682,0.00010546,2]
[347868855,1736173833875,-1018.15,0.00010546,2]
[347868858,1736173833886,-687.58,0.00010546,2]
[347868860,1736173833897,-1077.03,0.00010546,2]
[347868862,1736173833907,-500.0,0.00010546,2]
[347868864,1736173833917,-1298.18,0.00010546,2]
[347868866,1736173833926,-500.0,0.00010546,2]
[347868868,1736173833936,-500.0,0.00010546,2]
[347868870,1736173833945,-500.0,0.00010546,2]
[347868872,1736173833955,-824.59,0.00010546,2]
[347868874,1736173833964,-500.0,0.00010546,2]
[347868876,1736173833975,-616.44,0.00010546,2]
[347868878,1736173833986,-500.0,0.00010546,2]
[347868880,1736173833995,-500.0,0.00010547,2]
[347868882,1736173834005,-500.0,0.00010547,2]
[347868884,1736173834015,-570.93,0.00010547,2]
[347868886,1736173834024,-843.66,0.00010547,2]
[347868888,1736173834034,-1198.2,0.00010547,2]
[347868890,1736173834043,-500.0,0.00010547,2]
[347868892,1736173834055,-642.02,0.00010547,2]
[347868894,1736173834072,-567.79,0.00010547,2]
[347868896,1736173834082,-1769.7,0.00010547,2]
[347868898,1736173834092,-368.698514,0.0001062,2]
[347868900,1736173834102,-500.0,0.0001062,2]
[347868902,1736173834112,-500.0,0.0001062,2]
[347868904,1736173834122,-675.59,0.0001062,2]
[347868906,1736173834132,-860.7,0.0001062,2]
[347868908,1736173834142,-500.0,0.0001062,2]
[347868910,1736173834151,-500.0,0.0001062,2]
[347868912,1736173834161,-500.0,0.0001062,2]
[347868914,1736173834170,-632.35,0.0001062,2]
[347868915,1736173834181,-500.0,0.0001062,2]
[347868916,1736173834193,-660.21,0.0001062,2]
[347868917,1736173834203,-500.0,0.0001062,2]
[347868918,1736173834212,-571.39,0.0001062,2]
[347868919,1736173834222,-611.79,0.0001062,2]
[347868920,1736173834231,-500.0,0.0001062,2]
[347868921,1736173834240,-500.0,0.0001062,2]
[347868922,1736173834250,-500.0,0.0001062,2]
[347868923,1736173834260,-1422.45,0.0001062,2]
[347868924,1736173834269,-500.0,0.0001062,2]
[347868925,1736173834279,-899.228474,0.0001062,2]
[347868926,1736173834288,-550.79192445,0.0001062,2]
[347868927,1736173834298,-1185.8,0.0001062,2]
[347868928,1736173834308,-500.0,0.0001062,2]
[347868929,1736173834317,-1333.08,0.0001062,2]
[347868930,1736173834327,-150.0,0.00010677,2]
[347868931,1736173834338,-150.0,0.00010677,2]
[347868932,1736173834347,-150.0,0.00010677,2]
[347868933,1736173834357,-150.0,0.00010677,2]
[347868934,1736173834367,-978.53,0.00010767,2]
[347868935,1736173834376,-400.24684464,0.00010767,2]
[347868936,1736173834386,-426.1,0.00010767,2]
[347868937,1736173834395,-500.0,0.00010767,2]
[347868938,1736173834404,-500.0,0.00010767,2]
[347868939,1736173834414,-1225.917325,0.00010767,2]
[347868940,1736173834423,-500.0,0.00010767,2]
[347868941,1736173834433,-500.0,0.00010767,2]
[347868942,1736173834442,-500.0,0.00010767,2]
[347868943,1736173834452,-1320.31,0.00010767,2]
[347868944,1736173834463,-500.0,0.00010767,2]
[347868945,1736173834474,-500.0,0.00010767,2]
[347868946,1736173834484,-500.0,0.00010767,2]
[347868947,1736173834497,-500.0,0.00010767,2]
[347868948,1736173834507,-500.0,0.00010767,2]
[347868949,1736173834517,-500.0,0.00010767,2]
[347868950,1736173834527,-500.0,0.00010767,2]
[347868951,1736173834537,-157.16813513,0.000108,2]
[347868952,1736173834547,-500.0,0.0001082,2]
[347868953,1736173834556,-1018.15,0.0001082,2]
[347868954,1736173834565,-687.58,0.0001082,2]
[347868955,1736173834575,-1077.03,0.0001082,2]
[347868956,1736173834585,-229.8,0.0001082,2]
[347868957,1736173834594,-1298.18,0.0001082,2]
[347868958,1736173834603,-500.0,0.0001082,2]
[347868959,1736173834613,-500.0,0.0001082,2]
[347868960,1736173834622,-824.59,0.0001082,2]
[347868961,1736173834631,-616.44,0.0001082,2]
[347868962,1736173834641,-500.0,0.00010821,2]
[347868963,1736173834651,-538.81351321,0.00010821,2]
[347868964,1736173834660,-570.93,0.00010821,2]
[347868965,1736173834670,-843.66,0.00010821,2]
[347868966,1736173834679,-1198.2,0.00010821,2]
[347868967,1736173834689,-500.0,0.00010821,2]
[347868968,1736173834699,-642.02,0.00010821,2]
[347868969,1736173834708,-567.79,0.00010821,2]
[347868970,1736173834717,-1769.7,0.00010821,2]
[347868971,1736173834726,-500.56463678,0.00010829,2]
[347868972,1736173834735,-500.0,0.00010829,2]
[347868973,1736173834744,-723.04,0.00010843,2]
[347868974,1736173834754,-742.21,0.00010843,2]
[347868975,1736173834763,-3075.86,0.00010843,2]
[347868976,1736173834772,-5000.0,0.00010857,2]
[347868977,1736173834782,-420.0,0.00010875,2]
[347868978,1736173834792,-471.76825393,0.00010894,2]
[347868979,1736173834806,-28.23174607,0.00010894,2]
[347868980,1736173834819,-500.0,0.00010894,2]
[347868981,1736173834829,-675.59,0.00010894,2]
[347868982,1736173834839,-778.83565393,0.00010894,2]
[347868983,1736173834851,-81.86434607,0.00010894,2]
[347868984,1736173834862,-455.30099375,0.00010894,2]
[347868987,1736173838330,-44.69900625,0.00010894,2]
[347868988,1736173838340,-500.0,0.00010894,2]
[347868989,1736173838350,-500.0,0.00010894,2]
[347868990,1736173838360,-632.35,0.00010894,2]
[347868991,1736173838370,-500.0,0.00010894,2]
[347868992,1736173838380,-660.21,0.00010894,2]
[347868993,1736173838389,-500.0,0.00010894,2]
[347868994,1736173838399,-571.39,0.00010894,2]
[347868995,1736173838408,-611.79,0.00010894,2]
[347868996,1736173838418,-500.0,0.00010894,2]
[347868997,1736173838427,-500.0,0.00010894,2]
[347868998,1736173838437,-500.0,0.00010894,2]
[347868999,1736173838447,-1422.45,0.00010894,2]
[347869000,1736173838456,-500.0,0.00010894,2]
[347869001,1736173838466,-899.228474,0.00010894,2]
[347869002,1736173838475,-500.0,0.00010894,2]
[347869003,1736173838485,-1185.8,0.00010894,2]
[347869004,1736173838495,-1333.08,0.00010894,2]
[347869005,1736173838505,-314.39,0.00010913,2]
[347869006,1736173838514,-150.0,0.00010914,2]
[347869007,1736173838523,-500.0,0.00010957,2]
[347869008,1736173838533,-500.0,0.00010957,2]
[347869009,1736173838543,-1308.48,0.00010957,2]
[347869010,1736173838552,-500.0,0.00010957,2]
[347869011,1736173838562,-517.68,0.00010957,2]
[347869012,1736173838571,-500.0,0.00010957,2]
[347869013,1736173838580,-500.0,0.00010957,2]
[347869014,1736173838590,-500.0,0.00010957,2]
[347869015,1736173838599,-338.21,0.00010957,2]
[347869016,1736173838609,-951.75,0.00010957,2]
[347869017,1736173838619,-673.2,0.00010957,2]
[347869018,1736173838628,-255.0,0.00010998,2]
[347869019,1736173838638,-978.53,0.00011041,2]
[347869020,1736173838648,-572.69,0.00011041,2]
[347869021,1736173838658,-500.0,0.00011041,2]
[347869022,1736173838667,-1225.917325,0.00011041,2]
[347869023,1736173838677,-500.0,0.00011041,2]
[347869024,1736173838686,-500.0,0.00011041,2]
[347869025,1736173838696,-500.0,0.00011041,2]
[347869026,1736173838706,-1320.31,0.00011041,2]
[347869027,1736173838715,-179.11927595,0.00011041,2]
[347869029,1736173838727,-320.88072405,0.00011041,2]
[347869031,1736173838737,-106.26150738,0.00011041,2]
[347869033,1736173838748,-393.73849262,0.00011041,2]
[347869035,1736173838757,-500.0,0.00011041,2]
[347869037,1736173838766,-358.88471258,0.00011041,2]
[347869039,1736173838778,-141.11528742,0.00011041,2]
[347869041,1736173838787,-500.0,0.00011041,2]
[347869043,1736173838797,-500.0,0.00011041,2]
[347869045,1736173838807,-500.0,0.00011041,2]
[347869047,1736173838820,-150.0,0.00011072,2]
[347869049,1736173838830,-96.46336164,0.00011094,2]
[347869051,1736173838842,-403.53663836,0.00011094,2]
[347869053,1736173838851,-1018.15,0.00011094,2]
[347869055,1736173838860,-687.58,0.00011094,2]
[347869057,1736173838870,-1077.03,0.00011094,2]
[347869059,1736173838879,-1298.18,0.00011094,2]
[347869061,1736173838891,-500.0,0.00011094,2]
[347869063,1736173838901,-500.0,0.00011094,2]
[347869066,1736173838911,-824.59,0.00011094,2]
[347869068,1736173838921,-616.44,0.00011094,2]
[347869070,1736173838931,-359.071988,0.00011095,2]
[347869072,1736173838947,-140.928012,0.00011095,2]
[347869074,1736173838956,-570.93,0.00011095,2]
[347869076,1736173838965,-843.66,0.00011095,2]
[347869078,1736173838976,-78.14182957,0.00011095,2]
[347869080,1736173838987,-989.26,0.00011095,2]
[347869083,1736173839005,-130.79817043,0.00011095,2]
[347869085,1736173839015,-500.0,0.00011095,2]
[347869087,1736173839025,-642.02,0.00011095,2]
[347869089,1736173839034,-567.79,0.00011095,2]
[347869091,1736173839043,-1769.7,0.00011095,2]
[347869093,1736173839053,-723.04,0.00011117,2]
[347869095,1736173839062,-742.21,0.00011117,2]
[347869097,1736173839071,-3075.86,0.00011117,2]
[347869099,1736173839081,-150.0,0.00011123,2]
[347869101,1736173839090,-150.0,0.00011123,2]
[347869103,1736173839101,-150.0,0.00011123,2]
[347869105,1736173839111,-150.0,0.00011123,2]
[347869107,1736173839120,-157.16813513,0.0001115,2]
[347869109,1736173839130,-150.0,0.00011151,2]
[347869110,1736173839139,-500.0,0.00011168,2]
[347869112,1736173839149,-500.0,0.00011168,2]
[347869114,1736173839158,-675.59,0.00011168,2]
[347869116,1736173839168,-860.7,0.00011168,2]
[347869118,1736173839178,-500.0,0.00011168,2]
[347869120,1736173839187,-500.0,0.00011168,2]
[347869122,1736173839196,-500.0,0.00011168,2]
[347869124,1736173839205,-632.35,0.00011168,2]
[347869126,1736173839215,-500.0,0.00011168,2]
[347869128,1736173839225,-660.21,0.00011168,2]
[347869130,1736173839234,-500.0,0.00011168,2]
[347869132,1736173839244,-571.39,0.00011168,2]
[347869134,1736173839254,-611.79,0.00011168,2]
[347869136,1736173839263,-500.0,0.00011168,2]
[347869139,1736173839274,-500.0,0.00011168,2]
[347869141,1736173839284,-500.0,0.00011168,2]
[347869143,1736173839293,-1422.45,0.00011168,2]
[347869144,1736173839303,-500.0,0.00011168,2]
[347869146,1736173839312,-899.228474,0.00011168,2]
[347869148,1736173839321,-500.0,0.00011168,2]
[347869150,1736173839331,-1185.8,0.00011168,2]
[347869153,1736173839342,-1333.08,0.00011168,2]
[347869155,1736173839350,-506.119,0.0001121,2]
[347869156,1736173839360,-500.0,0.00011214,2]
[347869159,1736173839370,-500.0,0.00011214,2]
[347869161,1736173839379,-526.0848433,0.00011214,2]
[347869162,1736173839388,-1860.0,0.00011215,2]
[347869165,1736173839398,-819.0,0.00011215,2]
[347869167,1736173839408,-3776.0,0.00011215,2]
[347869168,1736173839417,-918.0,0.00011215,2]
[347869170,1736173839427,-1258.0,0.00011215,2]
[347869172,1736173839436,-3253.36647314,0.00011215,2]
[347869175,1736173839449,-721.63352686,0.00011215,2]
[347869177,1736173839458,-537.0,0.00011215,2]
[347869179,1736173839468,-1103.0,0.00011215,2]
[347869181,1736173839478,-150.0,0.00011215,2]
[347869183,1736173839487,-2014.0,0.00011215,2]
[347869185,1736173839496,-636.0,0.00011215,2]
[347869187,1736173839505,-3322.59401592,0.00011215,2]
[347869189,1736173839522,-571.40598408,0.00011215,2]
[347869191,1736173839532,-1267.0,0.00011215,2]
[347869193,1736173839541,-500.0,0.00011231,2]
[347869196,1736173839550,-124.94892449,0.00011231,2]
[347869276,1736173840326,-1183.53107551,0.00011231,2]
[347869278,1736173840335,-500.0,0.00011231,2]
[347869279,1736173840343,-517.68,0.00011231,2]
[347869281,1736173840353,-500.0,0.00011231,2]
[347869283,1736173840362,-500.0,0.00011231,2]
[347869285,1736173840371,-500.0,0.00011231,2]
[347869287,1736173840381,-951.75,0.00011231,2]
[347869289,1736173840391,-673.2,0.00011231,2]
[347869291,1736173840401,-150.0,0.0001127,2]
[347869310,1736173840576,-978.53,0.00011315,2]
[347869312,1736173840587,-500.0,0.00011315,2]
[347869314,1736173840597,-1225.917325,0.00011315,2]
[347869316,1736173840606,-500.0,0.00011315,2]
[347869319,1736173840616,-500.0,0.00011315,2]
[347869321,1736173840626,-500.0,0.00011315,2]
[347869323,1736173840635,-1320.31,0.00011315,2]
[347869325,1736173840646,-183.5789062,0.00011315,2]
[347869326,1736173840655,-500.0,0.00011315,2]
[347869328,1736173840665,-500.0,0.00011315,2]
[347869331,1736173840675,-500.0,0.00011315,2]
[347869332,1736173840685,-500.0,0.00011315,2]
[347869335,1736173840694,-500.0,0.00011315,2]
[347869337,1736173840704,-500.0,0.00011315,2]
[347869339,1736173840714,-500.0,0.00011368,2]
[347869341,1736173840723,-500.0,0.00011368,2]
[347869343,1736173840733,-490.88859585,0.00011368,2]
[347869344,1736173840742,-191.68839425,0.00011368,2]
[347869346,1736173840751,-500.0,0.00011368,2]
[347869348,1736173840761,-500.0,0.00011368,2]
[347869350,1736173840770,-527.95501032,0.00011368,2]
[347869352,1736173840780,-1018.15,0.00011368,2]
[347869354,1736173840789,-687.58,0.00011368,2]
[347869356,1736173840799,-500.0,0.00011368,2]
[347869359,1736173840811,-579.65,0.00011368,2]
[347869360,1736173840822,-1077.03,0.00011368,2]
[347869363,1736173840832,-500.0,0.00011368,2]
[347869364,1736173840842,-1298.18,0.00011368,2]
[347869366,1736173840854,-1604.03,0.00011368,2]
[347869368,1736173840864,-500.0,0.00011368,2]
[347869371,1736173840874,-500.0,0.00011368,2]
[347869373,1736173840884,-500.0,0.00011368,2]
[347869375,1736173840894,-500.0,0.00011368,2]
[347869377,1736173840903,-898.68,0.00011368,2]
[347869379,1736173840912,-2964.33,0.00011368,2]
[347869381,1736173840921,-500.0,0.00011368,2]
[347869383,1736173840931,-2184.13,0.00011368,2]
[347869385,1736173840940,-824.59,0.00011368,2]
[347869387,1736173840950,-500.0,0.00011368,2]
[347869388,1736173840959,-500.0,0.00011368,2]
[347869390,1736173840969,-495.2673766,0.00011368,2]
[347869392,1736173840979,-319.94169573,0.00011368,2]
[347869395,1736173840988,-557.66,0.00011368,2]
[347869397,1736173840999,-1545.47,0.00011368,2]
[347869399,1736173841008,-616.44,0.00011368,2]
[347869400,1736173841017,-500.0,0.00011368,2]
[347869402,1736173841027,-874.15,0.00011368,2]
[347869404,1736173841037,-500.0,0.00011369,2]
[347869407,1736173841047,-570.93,0.00011369,2]
[347869409,1736173841056,-843.66,0.00011369,2]
[347869412,1736173841066,-1198.2,0.00011369,2]
[347869415,1736173841075,-500.0,0.00011369,2]
[347869418,1736173841085,-642.02,0.00011369,2]
[347869421,1736173841096,-567.79,0.00011369,2]
[347869423,1736173841105,-1769.7,0.00011369,2]
[347869425,1736173841115,-150.0,0.00011388,2]
[347869427,1736173841125,-723.04,0.00011391,2]
[347869429,1736173841134,-742.21,0.00011391,2]
[347869431,1736173841144,-1124.39,0.00011391,2]
[347869433,1736173841153,-3075.86,0.00011391,2]
[347869435,1736173841163,-500.0,0.00011442,2]
[347869437,1736173841172,-500.0,0.00011442,2]
[347869439,1736173841181,-675.59,0.00011442,2]
[347869440,1736173841190,-860.7,0.00011442,2]
[347869443,1736173841200,-500.0,0.00011442,2]
[347869445,1736173841211,-500.0,0.00011442,2]
[347869447,1736173841220,-500.0,0.00011442,2]
[347869449,1736173841229,-632.35,0.00011442,2]
[347869451,1736173841239,-500.0,0.00011442,2]
[347869453,1736173841248,-660.21,0.00011442,2]
[347869455,1736173841257,-500.0,0.00011442,2]
[347869457,1736173841267,-571.39,0.00011442,2]
[347869459,1736173841276,-611.79,0.00011442,2]
[347869461,1736173841285,-500.0,0.00011442,2]
[347869463,1736173841294,-500.0,0.00011442,2]
[347869465,1736173841303,-500.0,0.00011442,2]
[347869467,1736173841313,-1422.45,0.00011442,2]
[347869468,1736173841333,-500.0,0.00011442,2]
[347869470,1736173841343,-899.228474,0.00011442,2]
[347869473,1736173841353,-500.0,0.00011442,2]
[347869474,1736173841363,-1185.8,0.00011442,2]
[347869476,1736173841374,-1333.08,0.00011442,2]
[347869479,1736173841383,-150.0,0.00011468,2]
[347869481,1736173841392,-300.0,0.00011479,2]
[347869483,1736173841402,-75231.24359224,0.0001149,2]
[347869507,1736173841630,-34933.32230254,0.0001149,2]
[347869510,1736173841649,-2774.0273353,0.0001149,2]
[347869513,1736173841660,-15327.4115,0.0001149,2]
[347869515,1736173841680,-318.6088606,0.0001149,2]
[347869516,1736173841692,-547.095,0.0001149,2]
[347869517,1736173841703,-1288.173311,0.0001149,2]
[347869647,1736173843339,-102614.81459969,0.0001149,2]
[347869648,1736173843367,-470048.95729063,0.0001149,2]
[347869649,1736173843378,-157.16813513,0.000115,2]
[347869650,1736173843387,-170.56693183,0.00011505,2]
[347869651,1736173843397,-1308.48,0.00011505,2]
[347869652,1736173843406,-500.0,0.00011505,2]
[347869653,1736173843415,-517.68,0.00011505,2]
[347869654,1736173843425,-500.0,0.00011505,2]
[347869655,1736173843434,-500.0,0.00011505,2]
[347869656,1736173843443,-500.0,0.00011505,2]
[347869657,1736173843454,-951.75,0.00011505,2]
[347869658,1736173843463,-673.2,0.00011505,2]
[347869659,1736173843472,-303123.49389556,0.00011521,2]
[347869660,1736173843488,-1094.49999998,0.00011521,2]
[347869661,1736173843502,-297.99986866,0.00011521,2]
[347869662,1736173843516,-2514.37088174,0.00011521,2]
[347869668,1736173846307,-572.98,0.00010346,2]
[347869669,1736173846317,-455.23149052,0.00010346,2]
[347869670,1736173846463,-393.48050348,0.00010346,2]
[347869671,1736173846474,-572.98,0.0001062,2]
[347869672,1736173846483,-848.711994,0.0001062,2]
[347869673,1736173846494,-572.98,0.00010894,2]
[347869674,1736173846504,-848.711994,0.00010894,2]
[347869675,1736173846514,-572.98,0.00011168,2]
[347869676,1736173846522,-1173.0,0.00011215,2]
[347869677,1736173846531,-572.98,0.00011442,2]
[347869678,1736173846541,-29821.08632728,0.00011521,2]
[347869679,1736173846638,-991.17168993,0.00011521,2]
[347869981,1736174590817,430.25,8.219e-05,2]
[347869989,1736174838629,164.497684,0.000196,120]
[347869990,1736174860092,164.497684,0.000196,120]
[347869991,1736174874035,164.497684,0.000196,120]
[347869992,1736174885562,164.497684,0.000196,120]
[347869993,1736174902214,164.497684,0.000196,120]
[347869994,1736174913062,164.497684,0.000196,120]
[347869995,1736174925197,164.497684,0.000196,120]
[347869996,1736174937210,164.497684,0.000196,120]
[347869997,1736174947143,164.497684,0.000196,120]
[347869998,1736174963285,164.497684,0.000196,120]
[347869999,1736174973161,-4000.764054,9.817e-05,2]
[347870000,1736174980298,164.497684,0.000196,120]
[347870001,1736174991514,164.497684,0.000196,120]
[347870004,1736175001943,164.497684,0.000196,120]
[347870005,1736175011365,164.497684,0.000196,120]
[347870006,1736175020817,164.497684,0.000196,120]
[347870013,1736175031393,164.497684,0.000196,120]
[347870014,1736175031812,-4278.235946,9.817e-05,2]
[347870015,1736175031822,-250.0,9.817e-05,2]
[347870016,1736175031832,-250.0,9.821e-05,2]
[347870017,1736175031846,-1000.0,9.893e-05,2]
[347870018,1736175031855,-5228.48103632,9.984e-05,2]
[347870019,1736175031877,-537.65950396,9.984e-05,2]
[347870084,1736175037442,-2390.89334,9.984e-05,2]
[347870085,1736175037593,-1005.0,9.984e-05,2]
[347870086,1736175037691,-6020.14614989,9.984e-05,2]
[347870087,1736175037703,-704.72561833,9.984e-05,2]
[347870088,1736175037715,-368.06645767,9.984e-05,2]
[347870283,1736175039663,-4841.05818103,9.984e-05,2]
[347870284,1736175039675,-254.6075001,9.984e-05,2]
[347870289,1736175039714,-774.6985844,9.984e-05,2]
[347870291,1736175039726,-1774.6636283,9.984e-05,2]
[347870293,1736175039735,-535.16,9.99e-05,2]
[347870295,1736175039744,-6383.1658717,9.998e-05,2]
[347870297,1736175039756,-7835.3641283,9.998e-05,2]
[347870299,1736175039765,-150.0,9.998e-05,2]
[347870301,1736175039775,-170.56693183,9.999e-05,2]
[347870303,1736175039784,-500.0,9.999e-05,2]
[347870305,1736175039794,-1220.27,9.999e-05,2]
[347870307,1736175039803,-871.33819287,9.999e-05,2]
[347870309,1736175039815,-21.93180713,9.999e-05,2]
[347870311,1736175039824,-500.0,9.999e-05,2]
[347870313,1736175039834,-617.1,9.999e-05,2]
[347870315,1736175039843,-617.1,9.999e-05,2]
[347870318,1736175039862,-500.0,9.999e-05,2]
[347870321,1736175039874,-500.0,9.999e-05,2]
[347870323,1736175039884,-500.0,9.999e-05,2]
[347870325,1736175039893,-3000.000001,0.0001,2]
[347870327,1736175039903,-156.82732921,0.0001,2]
[347870329,1736175039913,-163.59,0.00010027,2]
[347870330,1736175039922,-579.59,0.00010058,2]
[347870333,1736175039932,-5790.84,0.00010084,2]
[347870335,1736175039943,-250.0,0.0001018,2]
[347870337,1736175039952,-168.35,0.00010209,2]
[347870339,1736175039961,-500.0,0.00010273,2]
[347870341,1736175039971,-1220.27,0.00010273,2]
[347870343,1736175039980,-893.27,0.00010273,2]
[347870344,1736175039990,-618.7915925,0.00010273,2]
[347870346,1736175040000,-617.1,0.00010273,2]
[347870349,1736175040010,-617.1,0.00010273,2]
[347870350,1736175040019,-500.0,0.00010273,2]
[347870352,1736175040029,-500.0,0.00010273,2]
[347870354,1736175040039,-500.0,0.00010273,2]
[347870356,1736175040048,-156.82732917,0.00010275,2]
[347870359,1736175040058,-508.71,0.00010284,2]
[347870360,1736175040067,-500.0,0.00010346,2]
[347870362,1736175040076,-2881.83,0.00010346,2]
[347870364,1736175040086,-2122.24,0.00010346,2]
[347870366,1736175040096,-500.0,0.00010346,2]
[347870368,1736175040106,-500.0,0.00010346,2]
[347870371,1736175040124,-500.0,0.00010346,2]
[347870373,1736175040134,-500.0,0.00010346,2]
[347870375,1736175040144,-524.8,0.00010346,2]
[347870377,1736175040153,-500.0,0.00010346,2]
[347870379,1736175040168,-500.0,0.00010346,2]
[347870381,1736175040178,-500.0,0.00010346,2]
[347870383,1736175040187,-500.0,0.00010346,2]
[347870385,1736175040196,-500.0,0.00010346,2]
[347870386,1736175040206,-500.0,0.00010346,2]
[347870388,1736175040216,-500.0,0.00010346,2]
[347870391,1736175040226,-500.0,0.00010346,2]
[347870392,1736175040235,-1514.38,0.00010346,2]
[347870394,1736175040245,-500.0,0.00010346,2]
[347870396,1736175040255,-500.0,0.00010346,2]
[347870398,1736175040265,-500.0,0.00010346,2]
[347870401,1736175040276,-470.10212205,0.00010346,2]
[347870403,1736175040286,-500.0,0.00010346,2]
[347870405,1736175040296,-500.0,0.00010346,2]
[347870407,1736175040306,-500.0,0.00010346,2]
[347870409,1736175040315,-500.0,0.00010346,2]
[347870411,1736175040325,-500.0,0.00010346,2]
[347870413,1736175040335,-500.0,0.00010346,2]
[347870415,1736175040344,-500.0,0.00010346,2]
[347870417,1736175040354,-500.0,0.00010346,2]
[347870419,1736175040364,-500.0,0.00010346,2]
[347870421,1736175040372,-500.0,0.00010346,2]
[347870423,1736175040382,-500.0,0.00010346,2]
[347870424,1736175040391,-500.0,0.00010346,2]
[347870427,1736175040400,-500.0,0.00010346,2]
[347870428,1736175040410,-500.0,0.00010346,2]
[347870430,1736175040420,-192.50763727,0.00010346,2]
[347870432,1736175040429,-500.0,0.00010346,2]
[347870435,1736175040439,-524.21,0.00010346,2]
[347870437,1736175040448,-500.0,0.00010346,2]
[347870438,1736175040458,-241.79,0.00010346,2]
[347870441,1736175040468,-502.49475113,0.00010346,2]
[347870442,1736175040477,-599.17,0.00010346,2]
[347870444,1736175040487,-500.0,0.00010346,2]
[347870447,1736175040496,-500.0,0.00010346,2]
[347870448,1736175040506,-653.58,0.00010346,2]
[347870451,1736175040515,-500.0,0.00010346,2]
[347870453,1736175040525,-500.0,0.00010346,2]
[347870455,1736175040535,-500.0,0.00010346,2]
[347870457,1736175040544,-501.84441576,0.00010346,2]
[347870459,1736175040553,-500.0,0.00010346,2]
[347870461,1736175040562,-500.0,0.00010346,2]
[347870463,1736175040571,-500.0,0.00010346,2]
[347870464,1736175040580,-500.0,0.00010346,2]
[347870466,1736175040590,-500.0,0.00010346,2]
[347870468,1736175040599,-500.0,0.00010346,2]
[347870471,1736175040608,-919.48,0.00010346,2]
[347870472,1736175040619,-524.76,0.00010346,2]
[347870474,1736175040629,-430.25,0.0001047,2]
[347870477,1736175040638,-858.56,0.00010493,2]
[347870479,1736175040647,-1348.11,0.00010493,2]
[347870480,1736175040657,-749.94,0.00010493,2]
[347870482,1736175040667,-1132.34,0.00010493,2]
[347870484,1736175040676,-660.68,0.00010493,2]
[347870486,1736175040685,-500.0,0.00010493,2]
[347870489,1736175040695,-670.66,0.00010493,2]
[347870491,1736175040704,-1423.91,0.00010493,2]
[347870492,1736175040712,-640.3,0.00010546,2]
[347870494,1736175040720,-500.0,0.00010546,2]
[347870496,1736175040729,-500.0,0.00010547,2]
[347870498,1736175040739,-1220.27,0.00010547,2]
[347870500,1736175040749,-617.1,0.00010547,2]